bitfinex-derivatives/quotes_ETHF0:USTF0_20250807
["timestamp","ask_amount","ask_price","bid_price","bid_amount"]
[1754575198474,20.413,3858.8,3858.7,2.6962]
[1754575198662,20.63188223,3858.8,3858.7,0.5853]
[1754575198868,20.63188223,3858.8,3858.7,1.5745]
[1754575199069,20.63188223,3858.8,3858.7,2.2623]
[1754575199271,20.63188286,3858.8,3858.7,2.7037]
[1754575199971,19.8382,3858.8,3858.7,2.7037]
[1754575200168,1.4492,3858.8,3858.7,2.7037]
[1754575200371,1.97018,3859.0,3858.9,0.2736]
[1754575200562,1.97018,3859.0,3858.9,2.5957]
[1754575200563,1.0,3859.0,3858.9,2.5957]
[1754575201764,2.4604,3859.0,3858.9,1.2849]
[1754575202066,0.2928,3858.7,3858.6,0.5508]
[1754575202270,1.0084,3858.7,3858.6,1.2849]
[1754575202475,2.0208,3858.7,3858.6,1.6035]
[1754575202678,2.0208,3858.7,3858.6,2.5957]
[1754575203068,2.0208,3858.7,3858.6,2.1543]
[1754575203270,2.0208,3858.7,3858.6,2.5957]
[1754575204366,2.0208,3858.7,3858.6,2.80307399]
[1754575204672,2.0208,3858.7,3858.6,2.36167399]
[1754575205274,2.0208,3858.7,3858.6,2.1543]
[1754575205474,2.2361,3858.7,3858.6,0.9177]
[1754575206179,2.0208,3858.7,3858.6,0.9177]
[1754575206372,2.0208,3858.7,3858.6,2.5957]
[1754575207380,2.0208,3858.7,3858.6,2.80327002]
[1754575207677,2.0208,3858.7,3858.6,2.5957]
[1754575208573,2.0208,3858.7,3858.6,2.80335684]
[1754575208775,2.0208,3858.7,3858.6,2.5957]
[1754575209379,2.0208,3858.7,3858.6,2.80346901]
[1754575210069,2.0208,3858.7,3858.6,2.5957]
[1754575210275,2.0208,3858.7,3858.6,2.80347864]
[1754575211477,0.51821,3858.8,3858.7,2.5957]
[1754575211676,1.26301,3858.8,3858.7,2.80347864]
[1754575211986,2.53901,3858.8,3858.7,2.80347864]
[1754575212682,2.53901,3858.8,3858.7,0.20777864]
[1754575212985,2.75431,3858.8,3858.7,0.75857864]
[1754575213278,2.75431,3858.8,3858.7,1.12547864]
[1754575213485,2.53901,3858.8,3858.7,1.5135]
[1754575213678,2.53901,3858.8,3858.7,1.72145623]
[1754575213986,2.53901,3858.8,3858.7,1.72145629]
[1754575214474,2.53901,3858.8,3858.7,2.08865629]
[1754575216084,2.53901,3858.8,3858.7,2.36225629]
[1754575216388,2.53901,3858.8,3858.7,2.80365629]
[1754575217289,2.75431,3858.8,3858.7,2.1543]
[1754575218089,2.53901,3858.8,3858.7,2.80366007]
[1754575218392,2.71659134,3859.0,3858.9,0.7341]
[1754575218590,3.46139134,3859.0,3858.9,2.5957]
[1754575218889,4.39299134,3859.0,3858.9,2.5957]
[1754575219582,4.39299134,3859.0,3858.9,1.8807]
[1754575219787,4.60829134,3859.0,3858.9,0.5508]
[1754575220184,4.60829134,3859.0,3858.9,0.9177]
[1754575220384,4.39299134,3859.0,3858.9,1.8807]
[1754575221384,4.60829134,3859.0,3858.9,0.9177]
[1754575222279,4.39014874,3859.0,3858.9,0.9177]
[1754575222484,4.60837617,3859.0,3858.9,0.9177]
[1754575223390,4.39307617,3859.0,3858.9,2.5957]
[1754575224490,2.86651617,3859.0,3858.3,0.5508]
[1754575224788,2.53903,3858.5,3858.4,0.75885422]
[1754575224991,21.10733,3858.5,3858.4,0.75885422]
[1754575225185,20.80732743,3858.5,3858.4,0.75885422]
[1754575225779,20.59202743,3858.5,3858.4,1.49295422]
[1754575225983,20.59202743,3858.5,3858.4,2.80375422]
[1754575227388,18.57122743,3858.5,3858.4,2.80375422]
[1754575227580,18.86402743,3858.5,3858.4,2.80375422]
[1754575227787,19.31602743,3858.5,3858.4,2.80375422]
[1754575227986,20.59202743,3858.5,3858.4,2.80375422]
[1754575231293,20.3738,3858.5,3858.4,2.5957]
[1754575231591,19.31531865,3858.5,3858.4,2.80373423]
[1754575232191,0.21751865,3858.5,3858.4,2.80373423]
[1754575232393,18.345,3858.5,3858.4,2.80373423]
[1754575233500,18.59019178,3858.5,3858.4,2.80373423]
[1754575235096,18.59019178,3858.5,3858.4,2.5957]
[1754575236098,19.02819178,3858.5,3858.4,2.5957]
[1754575236287,20.54679178,3858.5,3858.4,1.1913]
[1754575236492,20.74149178,3858.5,3858.4,0.5508]
[1754575236692,21.37812998,3858.5,3858.4,0.5508]
[1754575237297,21.18342998,3858.5,3858.4,2.5387]
[1754575239100,18.87819178,3858.5,3858.4,2.5387]
[1754575239300,20.54679178,3858.5,3858.4,2.5387]
[1754575239700,20.54679178,3858.5,3858.4,0.9093]
[1754575239901,20.54679178,3858.5,3858.4,2.125]
[1754575240102,20.54679178,3858.5,3858.4,2.5387]
[1754575240404,20.54679178,3858.5,3858.4,0.9093]
[1754575240904,20.74149178,3858.5,3858.4,0.5508]
[1754575241804,20.54683018,3858.5,3858.4,0.5508]
[1754575242103,20.54683018,3858.5,3858.4,2.125]
[1754575242303,20.54683756,3858.5,3858.4,2.5387]
[1754575242507,18.59023756,3858.5,3858.4,2.5387]
[1754575242701,0.438,3858.3,3857.4,0.5534]
[1754575242999,19.4442,3858.2,3858.1,1.0208]
[1754575243205,21.16769522,3858.2,3858.1,2.5181]
[1754575244001,19.21109522,3858.2,3858.1,2.5181]
[1754575244201,1.32009522,3858.2,3858.1,2.5181]
[1754575244498,18.765,3858.2,3858.1,2.5181]
[1754575244699,19.01021106,3858.2,3858.1,2.5181]
[1754575244899,19.29821106,3858.2,3858.1,2.5181]
[1754575246502,18.57221106,3858.2,3858.1,2.5181]
[1754575247005,0.1947,3858.1,3857.1,0.5302]
[1754575247197,1.7133,3857.2,3857.1,0.5302]
[1754575247403,0.438,3857.0,3856.4,0.9439]
[1754575247706,20.53999317,3856.9,3856.8,2.1044]
[1754575248101,20.53999317,3856.9,3856.7,2.1044]
[1754575248102,0.3882,3856.8,3856.7,2.1044]
[1754575248410,2.21699317,3856.8,3856.7,2.5181]
[1754575248622,1.1636,3856.7,3855.4,1.4973]
[1754575248805,19.8904,3856.6,3856.5,0.3585]
[1754575249012,20.53899317,3856.6,3856.5,1.4421]
[1754575249318,20.73369317,3856.6,3856.5,0.5302]
[1754575249515,0.9877,3856.0,3855.9,1.4345]
[1754575249712,0.288,3856.1,3856.0,0.8484]
[1754575250017,1.37459317,3856.1,3856.0,1.5742]
[1754575250312,0.54839317,3856.1,3856.0,2.5181]
[1754575250514,18.76,3856.7,3856.1,1.4973]
[1754575250813,18.76,3856.7,3856.6,2.5181]
[1754575250814,18.322,3856.7,3856.6,2.5181]
[1754575251110,18.86964579,3856.7,3856.6,2.5181]
[1754575251311,0.288,3856.3,3856.2,0.8484]
[1754575251512,1.9566,3856.3,3856.2,1.5742]
[1754575251718,18.321,3856.4,3856.2,1.9879]
[1754575251913,1.9566,3857.0,3856.9,1.0208]
[1754575252119,20.2786,3857.0,3856.9,2.5181]
[1754575252321,20.53806752,3857.0,3856.9,2.5181]
[1754575254921,20.53806752,3857.0,3856.9,2.1044]
[1754575255121,20.53806752,3857.0,3856.9,2.5181]
[1754575255716,0.25946752,3857.0,3856.9,2.5181]
[1754575255916,0.25916116,3857.1,3857.0,2.5181]
[1754575257022,0.25916116,3857.1,3857.0,1.0208]
[1754575257023,2.0118,3857.1,3857.0,1.0208]
[1754575257522,2.0118,3857.1,3857.0,2.5181]
[1754575259423,2.4565,3857.1,3857.0,1.256]
[1754575260026,2.4565,3857.1,3857.0,0.8887]
[1754575260721,2.4565,3857.1,3857.0,0.5302]
[1754575260920,1.4298,3857.0,3856.8,1.1297]
[1754575261120,1.0361,3856.7,3856.2,0.4279]
[1754575261321,2.0212,3856.3,3856.2,2.0309]
[1754575261517,0.373,3855.9,3855.8,0.9424]
[1754575261721,1.4785,3855.9,3855.8,2.0309]
[1754575261922,2.0212,3855.9,3855.8,2.5797]
[1754575262123,2.0212,3855.9,3855.8,2.1518]
[1754575262327,2.4659,3855.9,3855.8,0.5488]
[1754575262527,2.4659,3855.9,3855.5,1.5576]
[1754575262722,1.4785,3855.6,3855.5,2.5797]
[1754575262923,2.0212,3855.6,3855.5,2.5797]
[1754575263126,2.0212,3855.6,3855.5,2.1518]
[1754575263319,2.4659,3855.6,3855.5,1.5709]
[1754575263520,2.4659,3855.6,3855.5,0.9242]
[1754575264128,2.4659,3855.6,3855.5,1.8666]
[1754575264319,2.0212,3855.6,3855.5,1.8666]
[1754575264722,0.8217,3855.5,3855.4,0.3754]
[1754575264927,2.0212,3855.5,3855.4,2.1518]
[1754575265628,2.0212,3855.5,3855.4,2.5797]
[1754575265823,2.0212,3855.5,3855.4,0.5488]
[1754575266129,2.4659,3855.5,3855.4,0.9242]
[1754575266729,2.4659,3855.5,3855.4,2.1518]
[1754575266922,2.0212,3855.5,3855.4,2.5797]
[1754575267324,18.311,3855.5,3855.4,2.5797]
[1754575267626,0.6631,3855.9,3855.8,2.5797]
[1754575267928,19.4155,3855.9,3855.8,2.5797]
[1754575268231,20.59941493,3855.9,3855.8,2.5797]
[1754575268432,20.05671493,3855.9,3855.8,2.5797]
[1754575268729,20.05668898,3855.9,3855.8,2.5797]
[1754575268929,20.59328898,3855.9,3855.8,2.5797]
[1754575269121,20.3251,3855.9,3855.8,2.5797]
[1754575269325,20.59333202,3855.9,3855.8,2.5797]
[1754575269522,20.05673202,3855.9,3855.8,2.5797]
[1754575269831,20.59333202,3855.9,3855.8,2.5797]
[1754575270336,18.57823202,3855.9,3855.8,2.5797]
[1754575270534,18.31,3855.9,3855.8,2.5797]
[1754575270727,19.7885,3855.9,3855.8,2.5797]
[1754575271033,20.3251,3855.9,3855.8,2.5797]
[1754575271231,18.31,3855.9,3855.8,2.5797]
[1754575272137,19.7885,3855.9,3855.8,2.5797]
[1754575272632,0.5366,3856.3,3855.8,1.0221]
[1754575272838,18.306,3856.3,3856.2,1.0221]
[1754575273130,19.3005552,3856.3,3856.2,2.5797]
[1754575273428,20.5894552,3856.3,3856.2,2.1518]
[1754575273633,1.5727,3856.0,3855.9,0.5488]
[1754575273835,1.5727,3856.0,3855.6,1.0088]
[1754575273836,2.0151,3855.5,3855.4,0.5488]
[1754575274025,20.7587,3855.5,3855.4,0.5488]
[1754575274427,21.02729452,3855.5,3855.4,0.5488]
[1754575274933,20.05209452,3855.5,3855.4,2.5797]
[1754575275332,20.58869452,3855.5,3855.4,2.5797]
[1754575276226,20.05209452,3855.5,3855.4,2.5797]
[1754575276633,20.58869452,3855.5,3855.4,2.5797]
[1754575277336,20.3201,3855.5,3855.4,2.5797]
[1754575277535,20.3201,3855.5,3853.8,0.15446362]
[1754575277536,1.4785,3855.4,3855.3,0.6467]
[1754575277838,0.55275096,3855.4,3855.3,2.5797]
[1754575278240,0.93205096,3855.4,3855.3,2.5797]
[1754575278432,1.74745096,3855.4,3855.3,2.5797]
[1754575278632,2.28405096,3855.4,3855.3,2.5797]
[1754575278938,2.28405096,3855.4,3855.3,2.1518]
[1754575279132,2.28405096,3855.4,3855.3,1.9988]
[1754575279441,2.28405096,3855.4,3855.3,2.5797]
[1754575280432,0.26888024,3855.4,3855.3,2.5797]
[1754575280632,2.72258024,3855.4,3855.3,0.9242]
[1754575280832,2.72258024,3855.4,3855.3,0.5488]
[1754575281533,2.72258024,3855.4,3855.3,0.9242]
[1754575281731,2.72258024,3855.4,3855.3,1.5051]
[1754575281932,2.72258024,3855.4,3855.3,1.8666]
[1754575282638,1.4785,3855.3,3855.2,0.3754]
[1754575282834,2.0151,3855.3,3855.2,0.9242]
[1754575283138,2.0151,3855.3,3855.2,2.1518]
[1754575283740,1.74738024,3855.4,3855.3,2.5797]
[1754575284041,20.7507,3855.4,3855.3,2.1518]
[1754575284234,20.7507,3855.4,3855.0,1.5576]
[1754575284434,1.0361,3855.1,3855.0,2.0309]
[1754575284641,20.3111,3855.1,3855.0,2.0309]
[1754575284935,2.0151,3854.6,3854.5,2.5797]
[1754575285140,20.7487,3854.6,3854.5,2.1518]
[1754575285336,0.6631,3854.1,3854.0,1.7903]
[1754575285544,19.7735,3854.1,3854.0,2.5797]
[1754575287537,0.5366,3854.9,3854.1,1.5576]
[1754575287737,20.57590387,3854.8,3854.7,2.5797]
[1754575287944,21.01450387,3854.8,3854.7,2.1518]
[1754575288152,21.01450387,3854.8,3854.7,1.8666]
[1754575288444,21.01450387,3854.8,3854.7,0.5488]
[1754575288632,21.66900586,3854.8,3854.7,0.5488]
[1754575288835,1.4176,3854.7,3854.5,0.5488]
[1754575289040,1.30490387,3854.6,3854.5,0.5488]
[1754575289336,0.3793,3854.3,3854.2,1.4239]
[1754575289538,20.2943,3854.3,3854.2,2.0624]
[1754575289738,20.98770387,3854.3,3854.2,0.8881]
[1754575289948,20.98770387,3854.3,3854.2,1.7834]
[1754575290341,20.98770387,3854.3,3854.2,2.0624]
[1754575291138,20.98770387,3854.3,3854.2,0.8881]
[1754575291345,20.2429022,3854.3,3853.8,0.5358]
[1754575291545,2.0013,3854.0,3853.9,2.4911]
[1754575291745,19.3166,3854.0,3853.9,2.4911]
[1754575291940,19.23420387,3854.0,3853.9,2.4911]
[1754575292136,18.55880387,3854.0,3853.9,2.4911]
[1754575292348,18.55780387,3854.0,3853.9,2.4911]
[1754575292548,18.85344182,3854.0,3853.9,2.4911]
[1754575292747,20.55864182,3854.0,3853.9,2.4911]
[1754575294546,20.55864182,3854.0,3852.9,0.93434901]
[1754575294748,2.69424182,3853.9,3853.8,1.7834]
[1754575294949,2.26964182,3853.9,3853.8,2.4911]
[1754575295649,2.0013,3853.9,3853.8,2.4911]
[1754575295850,2.2653664,3853.9,3853.8,2.4911]
[1754575296350,2.26537804,3853.9,3853.8,2.4911]
[1754575296644,1.74277804,3853.9,3853.0,1.0595]
[1754575296849,1.74275418,3853.9,3853.8,1.5266]
[1754575297149,20.2883,3853.9,3853.8,2.4911]
[1754575297346,20.55235418,3853.9,3853.8,2.4911]
[1754575297548,18.55005418,3853.9,3853.8,2.4911]
[1754575297744,20.02875418,3853.9,3853.8,2.4911]
[1754575297945,20.02875418,3853.9,3853.4,1.9674]
[1754575297946,0.6754,3853.5,3853.4,1.9674]
[1754575298147,18.5811,3853.5,3853.4,2.4911]
[1754575298347,18.285,3853.5,3853.4,2.4911]
[1754575300552,19.7637,3853.5,3853.4,2.4911]
[1754575300753,2.0013,3853.5,3853.4,2.4911]
[1754575300942,1.4787,3853.5,3853.4,2.4911]
[1754575301641,0.26392359,3853.7,3853.6,1.0029]
[1754575301845,18.282,3853.7,3853.6,2.4911]
[1754575302045,1.4787,3854.3,3854.2,1.0029]
[1754575302247,20.2833,3854.3,3854.2,2.0624]
[1754575302553,20.5462038,3854.3,3854.2,2.4911]
[1754575302848,2.2652038,3854.3,3854.2,2.0624]
[1754575303054,1.0266,3853.7,3853.6,1.4316]
[1754575303254,2.0013,3853.7,3853.6,2.4911]
[1754575304348,1.4787,3853.7,3853.6,2.4911]
[1754575305251,2.0013,3853.7,3853.6,2.4911]
[1754575305451,2.4259,3853.7,3853.6,2.0624]
[1754575306755,2.0013,3853.7,3853.6,2.4911]
[1754575306952,1.4787,3853.7,3853.6,2.4911]
[1754575307256,18.277,3853.7,3853.6,2.4911]
[1754575307452,0.9747,3854.0,3853.6,1.0029]
[1754575307648,0.4521,3854.0,3853.6,1.0029]
[1754575307852,18.276,3853.9,3853.6,1.0029]
[1754575308053,0.9472,3854.3,3854.2,1.0029]
[1754575308054,2.0013,3854.3,3854.2,1.0029]
[1754575308359,20.2763,3854.3,3854.2,2.4911]
[1754575308552,20.53626554,3854.3,3854.2,2.4911]
[1754575308747,20.53626554,3854.3,3853.7,1.5266]
[1754575308748,1.0266,3853.8,3853.7,1.5266]
[1754575308947,20.2763,3853.8,3853.7,1.1671]
[1754575309155,20.2763,3853.8,3853.7,2.4911]
[1754575309549,20.01380472,3853.8,3853.7,2.0624]
[1754575309756,20.96100472,3853.8,3853.7,1.2476]
[1754575310056,20.96100472,3853.8,3853.7,0.5237]
[1754575310252,19.98630472,3853.8,3852.9,0.93434901]
[1754575310450,1.4787,3853.1,3852.9,0.93434901]
[1754575310651,20.6989,3853.0,3852.9,1.45804901]
[1754575310848,20.6989,3853.0,3852.9,2.35824901]
[1754575311348,20.95914098,3853.0,3852.9,1.82244901]
[1754575311952,20.53454098,3853.0,3852.9,3.42544901]
[1754575312147,19.55984098,3853.0,3852.9,3.42544901]
[1754575312346,18.273,3853.2,3852.9,3.42544901]
[1754575312548,0.26022818,3853.1,3853.0,1.0595]
[1754575312755,0.26022818,3853.1,3853.0,2.4911]
[1754575313656,0.26022818,3853.2,3853.0,1.0029]
[1754575313858,18.272,3853.3,3853.1,2.4911]
[1754575314046,1.37878655,3854.6,3853.1,1.9674]
[1754575314254,10.218,3854.5,3853.2,0.5237]
[1754575314451,10.218,3854.5,3854.3,1.7834]
[1754575314452,2.65471304,3854.4,3854.3,1.7834]
[1754575314953,3.07931304,3854.4,3854.0,0.9645]
[1754575315152,1.0266,3854.1,3854.0,1.6884]
[1754575315455,2.0013,3854.1,3854.0,1.9674]
[1754575315656,2.0013,3854.1,3854.0,2.4911]
[1754575315851,2.0013,3854.0,3853.9,2.0624]
[1754575316150,2.0013,3854.0,3853.9,0.8881]
[1754575316345,1.2708,3854.2,3854.1,1.0029]
[1754575316550,20.2703,3854.2,3854.1,2.4911]
[1754575316758,1.3993,3854.1,3853.1,1.4882]
[1754575316961,0.9747,3854.0,3853.0,1.4882]
[1754575317255,0.4521,3853.9,3852.9,0.93434901]
[1754575317455,0.4521,3853.9,3853.2,0.4287]
[1754575317655,0.2961,3853.4,3853.3,2.0624]
[1754575317854,1.1275,3853.4,3853.3,2.4911]
[1754575318454,0.7482,3853.4,3853.3,2.4911]
[1754575319359,0.2961,3853.4,3853.3,2.4911]
[1754575319763,0.7291,3853.4,3853.3,2.4911]
[1754575319962,1.9503,3853.4,3853.3,2.4911]
[1754575321057,1.9503,3853.4,3853.3,1.5266]
[1754575321363,2.357,3853.4,3853.3,0.5237]
[1754575321750,1.5144,3853.1,3853.0,1.57]
[1754575322063,20.2104,3853.1,3853.0,1.9846]
[1754575322255,18.263,3853.1,3853.0,2.5395]
[1754575322961,20.2104,3853.1,3853.0,2.1249]
[1754575323161,20.2104,3853.1,3853.0,2.5395]
[1754575323366,20.2104,3853.1,3853.0,2.1249]
[1754575324058,20.6171,3853.1,3853.0,1.2816]
[1754575324255,1.9211,3853.0,3852.9,0.93434901]
[1754575324457,2.3541,3853.0,3852.9,0.93434901]
[1754575324764,2.3541,3853.0,3852.9,1.48924901]
[1754575324958,2.3541,3853.0,3852.9,0.93434901]
[1754575325159,2.3541,3853.0,3852.9,1.48924901]
[1754575325562,20.2074,3853.0,3852.9,3.47384901]
[1754575326058,0.25182072,3853.0,3852.9,3.47384901]
[1754575326259,0.97942072,3853.3,3853.2,1.5117]
[1754575326465,19.3519,3853.3,3853.2,2.5395]
[1754575326664,19.16507534,3853.3,3853.2,2.5395]
[1754575326855,0.25182072,3853.3,3853.2,2.5395]
[1754575327060,37.369,3853.8,3852.9,0.93434901]
[1754575327061,0.9060137,3853.7,3853.6,1.0278]
[1754575327266,0.25182072,3853.7,3853.6,2.5395]
[1754575327460,18.51082072,3853.7,3853.6,2.5395]
[1754575327862,0.25182072,3853.7,3853.6,2.5395]
[1754575328163,0.25182072,3854.1,3854.0,2.5395]
[1754575328364,0.25182072,3854.4,3854.3,2.5395]
[1754575328558,3.41269734,3854.5,3854.3,1.57]
[1754575328759,3.41269734,3854.5,3854.4,2.5395]
[1754575328966,4.85539734,3854.5,3854.4,2.5395]
[1754575329163,5.36009734,3854.5,3854.4,1.2816]
[1754575329466,5.36009734,3854.5,3854.4,2.1249]
[1754575329665,5.61191806,3854.5,3854.4,2.1249]
[1754575329867,5.36009734,3854.5,3854.4,2.1249]
[1754575330270,5.36009734,3854.5,3854.4,2.5395]
[1754575330460,5.36009734,3854.5,3854.4,2.1249]
[1754575330863,5.36009734,3854.5,3854.4,1.452]
[1754575331176,5.76679734,3854.5,3854.4,0.9098]
[1754575331372,5.76679734,3854.5,3854.4,0.5549]
[1754575331769,5.36009734,3854.5,3854.4,1.8238]
[1754575332578,4.85539734,3854.5,3854.4,2.5395]
[1754575333664,3.41269734,3854.5,3854.4,2.5395]
[1754575333869,21.66369734,3854.5,3854.4,2.5395]
[1754575334069,21.91527081,3854.5,3854.4,2.5395]
[1754575334265,22.64287081,3854.5,3854.4,2.5395]
[1754575334879,23.35797081,3854.5,3854.4,2.5395]
[1754575335089,23.86267081,3854.5,3853.2,0.4146]
[1754575335385,1.69427347,3854.4,3854.3,2.5395]
[1754575335579,0.54617347,3854.4,3854.3,2.5395]
[1754575335775,0.25157347,3854.4,3854.3,2.5395]
[1754575336181,21.66369734,3854.5,3854.3,2.5395]
[1754575336489,21.66369734,3854.5,3854.4,2.5395]
[1754575336982,3.41269734,3854.5,3854.4,2.5395]
[1754575337180,21.65969734,3854.5,3854.4,2.5395]
[1754575337679,21.95429734,3854.5,3854.4,2.5395]
[1754575338685,23.10239734,3854.5,3854.4,2.5395]
[1754575338882,3.70729734,3854.5,3854.4,2.5395]
[1754575339088,3.41269734,3854.5,3854.4,2.5395]
[1754575340092,1.42339734,3854.5,3854.4,2.5395]
[1754575340293,0.85869734,3854.5,3854.4,2.5395]
[1754575340789,0.14949734,3854.5,3854.4,2.5395]
[1754575341491,18.243,3855.1,3854.4,2.5395]
[1754575341694,0.5373,3855.9,3855.8,0.3718]
[1754575341992,1.37878655,3856.7,3854.2,0.26223254]
[1754575341993,1.98,3856.7,3856.6,0.914]
[1754575342394,0.5373,3856.7,3856.6,0.914]
[1754575342589,1.547,3856.7,3856.6,0.914]
[1754575342793,1.9913,3856.7,3854.9,0.5422]
[1754575342994,0.433,3856.5,3854.9,0.5422]
[1754575343198,1.0859,3856.4,3854.9,0.5422]
[1754575343397,1.547,3856.3,3856.2,0.3718]
[1754575343695,0.5373,3856.2,3854.7,0.5422]
[1754575343890,1.547,3856.2,3854.6,0.5422]
[1754575344091,1.5189,3856.1,3854.6,0.5422]
[1754575344288,2.5286,3856.0,3855.9,0.914]
[1754575344492,2.5286,3856.0,3855.5,0.5422]
[1754575344691,0.6599,3855.7,3855.6,0.914]
[1754575344892,1.98,3855.7,3855.6,0.914]
[1754575345089,2.1885,3855.7,3855.6,1.8646]
[1754575345292,1.1885,3855.7,3855.6,1.8646]
[1754575345491,1.5383,3855.7,3855.6,1.8646]
[1754575345696,1.0097,3855.7,3854.9,0.5422]
[1754575345893,1.0097,3855.7,3855.0,0.4146]
[1754575346398,0.6599,3855.7,3855.6,1.9846]
[1754575346598,18.235,3856.2,3855.7,0.4146]
[1754575346800,18.235,3856.2,3853.8,1.5117]
[1754575347000,18.235,3856.2,3853.9,1.0971]
[1754575347301,18.235,3856.2,3854.1,0.5549]
[1754575347504,0.9703,3856.1,3854.3,1.5117]
[1754575347793,0.433,3856.1,3853.9,3.25923354]
[1754575347994,0.9816,3855.9,3854.0,1.5117]
[1754575348198,18.235,3856.2,3853.9,18.232]
[1754575348400,1.5189,3855.7,3854.2,1.5117]
[1754575348695,0.5373,3855.5,3854.1,0.5549]
[1754575348897,0.5373,3855.5,3854.2,0.4146]
[1754575349094,0.5373,3855.5,3854.3,1.0137]
[1754575349296,0.5373,3855.5,3854.5,0.4492]
[1754575349495,0.5373,3855.5,3854.7,0.5288]
[1754575349692,0.5373,3855.5,3854.9,0.5288]
[1754575349693,0.9476,3855.5,3854.9,0.5288]
[1754575349895,0.3532,3854.6,3854.5,1.4717]
[1754575350094,1.1533,3854.6,3854.5,2.565]
[1754575350299,2.4765,3854.6,3854.5,2.565]
[1754575350494,2.4765,3854.6,3854.5,0.3569]
[1754575350694,1.0111,3854.4,3854.3,1.2594]
[1754575350893,0.22696888,3856.1,3853.4,1.5425]
[1754575350894,0.4103,3854.9,3853.4,1.5425]
[1754575351097,1.4654,3854.8,3853.1,1.5425]
[1754575351298,0.1654516,3855.1,3853.2,1.5425]
[1754575351498,0.87713471,3856.1,3853.4,0.5288]
[1754575351700,0.9411,3854.5,3853.5,1.0137]
[1754575351997,0.5243,3854.2,3853.7,0.4492]
[1754575352199,1.04047917,3856.1,3853.7,0.4492]
[1754575352501,1.04047917,3856.1,3853.5,0.5645]
[1754575352502,1.4654,3853.9,3853.8,0.978]
[1754575353294,2.0944,3853.9,3853.8,2.565]
[1754575353496,1.5636,3853.9,3853.8,2.565]
[1754575353698,1.1533,3853.9,3853.8,2.565]
[1754575353899,0.629,3853.9,3853.8,2.565]
[1754575354204,2.4765,3854.6,3854.5,1.5513]
[1754575354402,1.9457,3854.6,3854.5,2.565]
[1754575355001,0.22717933,3855.5,3852.9,0.93434901]
[1754575355198,1.4654,3855.0,3854.9,0.4492]
[1754575355399,1.4654,3855.0,3854.5,0.5645]
[1754575355400,0.22717933,3855.9,3854.5,0.5645]
[1754575355593,0.9411,3854.8,3854.6,0.65361685]
[1754575355796,0.9346,3854.7,3854.6,1.5425]
[1754575356109,0.5243,3854.7,3854.6,1.74694173]
[1754575356408,0.9346,3854.7,3854.6,1.74694173]
[1754575356797,1.4654,3854.7,3854.6,1.18244173]
[1754575357106,1.4654,3854.7,3854.6,0.73324173]
[1754575357402,0.5243,3854.7,3854.6,1.74694173]
[1754575357600,0.87863968,3855.9,3854.6,0.20444173]
[1754575357802,0.5243,3854.9,3854.7,0.76894173]
[1754575357997,0.5243,3854.9,3854.8,1.5425]
[1754575358200,0.9346,3854.9,3854.8,0.978]
[1754575358401,2.4765,3854.9,3854.8,0.20472639]
[1754575359509,2.4765,3854.9,3854.8,0.93532639]
[1754575359701,2.4765,3854.9,3854.8,1.2594]
[1754575359902,1.5419,3854.9,3854.6,0.4492]
[1754575360200,2.4765,3854.5,3854.4,2.0005]
[1754575360410,2.4765,3854.5,3854.4,2.20531188]
[1754575360601,1.9457,3854.5,3854.4,2.76981188]
[1754575360800,1.1533,3854.5,3854.4,2.76981229]
[1754575361000,0.629,3854.5,3854.4,2.76981229]
[1754575361200,1.1533,3854.6,3854.5,2.565]
[1754575361402,0.5308,3854.9,3854.5,1.22731229]
[1754575361602,1.9522,3854.9,3854.8,0.6488]
[1754575361808,0.629,3854.9,3854.8,2.76981229]
[1754575362008,18.222,3856.5,3854.8,2.76981229]
[1754575362204,0.5243,3856.0,3854.9,0.20483854]
[1754575362409,1.4654,3856.3,3855.0,1.21853854]
[1754575362609,1.0111,3855.2,3855.1,1.5513]
[1754575362810,2.4765,3855.2,3855.1,2.7698447]
[1754575363010,2.4765,3855.2,3855.1,0.2048447]
[1754575363212,0.629,3854.8,3854.7,0.5288]
[1754575363417,2.4765,3854.8,3854.7,2.76987926]
[1754575363715,1.1533,3854.8,3854.7,2.76987926]
[1754575364116,1.1533,3854.8,3854.7,3.28858926]
[1754575364616,1.9522,3855.2,3855.1,2.51916]
[1754575364816,1.9522,3855.2,3855.1,2.20537926]
[1754575365018,2.4765,3855.2,3855.1,2.20537926]
[1754575365317,2.4765,3855.2,3855.1,1.75617926]
[1754575366616,2.4765,3855.2,3854.8,0.4492]
[1754575366617,1.0111,3854.9,3854.8,1.4717]
[1754575366815,2.9952,3854.9,3854.8,2.20545235]
[1754575367016,2.9952,3854.9,3854.8,0.20495235]
[1754575367212,2.9952,3854.9,3854.8,1.22745235]
[1754575367412,2.9952,3854.9,3854.8,0.56185235]
[1754575367816,2.9952,3854.9,3854.8,1.75625235]
[1754575368815,2.9952,3854.9,3854.8,1.75628465]
[1754575369116,2.4765,3854.9,3854.8,1.75628547]
[1754575369316,2.4765,3854.9,3854.8,1.22748547]
[1754575369517,2.4765,3854.9,3854.8,0.56188547]
[1754575369718,2.4765,3854.9,3854.8,0.56192241]
[1754575370112,2.4765,3854.9,3854.8,1.09072241]
[1754575370314,2.4765,3854.9,3854.8,0.56192241]
[1754575370514,2.4765,3854.9,3854.8,0.20502241]
[1754575371511,1.0111,3854.3,3854.2,1.24938]
[1754575371716,2.4765,3854.3,3854.2,2.72436623]
[1754575372124,2.4765,3854.3,3854.2,2.72437122]
[1754575372311,1.5354,3854.3,3854.2,3.28887122]
[1754575372517,1.1533,3854.3,3854.2,3.28887122]
[1754575373317,0.3532,3854.3,3854.2,3.28887122]
[1754575373524,1.55801,3854.9,3854.8,1.0225]